[Event "*** Titled Tuesday 3|2 Blitz"]
[Site "Chess.com"]
[Date "2016.01.05"]
[Round "8"]
[White "Recombinant"]
[Black "TheMagician"]
[Result "0-1"]
[WhiteElo "2168"]
[BlackElo "2158"]
[TimeControl "180+2"]
[EndTime "18:39:24 PST"]
[Termination "TheMagician won by resignation"]

1. d4 {[%clk 0:03:01.4]} 1... Nf6 {[%clk 0:03:00.5]} 2. c4 {[%clk 0:03:00.3]}
2... e6 {[%clk 0:02:58.4]} 3. Nc3 {[%clk 0:03:00.9]} 3... Bb4 {[%clk 0:02:58.4]}
4. e3 {[%clk 0:02:58.5]} 4... c5 {[%clk 0:02:59.2]} 5. Bd3 {[%clk 0:02:55.8]}
5... d5 {[%clk 0:02:58]} 6. a3 {[%clk 0:02:47]} 6... Ba5 {[%clk 0:02:52.6]} 7.
Nf3 {[%clk 0:02:25.8]} 7... dxc4 {[%clk 0:02:51.7]} 8. Bxc4 {[%clk 0:02:25.6]}
8... cxd4 {[%clk 0:02:53]} 9. exd4 {[%clk 0:02:21.7]} 9... a6 {[%clk 0:02:47.8]}
10. O-O {[%clk 0:02:21.6]} 10... b5 {[%clk 0:02:48.5]} 11. Be2 {[%clk
0:02:19.9]} 11... Bb7 {[%clk 0:02:49.2]} 12. Ne5 {[%clk 0:02:19.8]} 12... Nbd7
{[%clk 0:02:32.3]} 13. Bf3 {[%clk 0:02:18.8]} 13... Nxe5 {[%clk 0:02:22.9]} 14.
Bxb7 {[%clk 0:02:14.9]} 14... Bxc3 {[%clk 0:02:07.3]} 15. bxc3 {[%clk
0:01:59.5]} 15... Nc4 {[%clk 0:01:58.6]} 16. Bc6+ {[%clk 0:01:57.4]} 16... Ke7
{[%clk 0:01:47.1]} 17. Bxa8 {[%clk 0:01:57]} 17... Qxa8 {[%clk 0:01:47.9]} 18.
a4 {[%clk 0:01:58.2]} 18... Qb7 {[%clk 0:01:43.5]} 19. axb5 {[%clk 0:01:57.2]}
19... axb5 {[%clk 0:01:43.4]} 20. Bf4 {[%clk 0:01:57.5]} 20... Nd5 {[%clk
0:01:41.3]} 21. Qf3 {[%clk 0:01:54]} 21... Rc8 {[%clk 0:01:20.1]} 22. Bg3 {[%clk
0:01:53.6]} 22... Nd2 {[%clk 0:01:10.8]} 23. Bh4+ {[%clk 0:01:50.9]} 23... f6
{[%clk 0:01:03.7]} 24. Qg4 {[%clk 0:01:48.7]} 24... Kf7 {[%clk 0:00:42.2]} 25.
Rfd1 {[%clk 0:01:44.4]} 25... Nb3 {[%clk 0:00:38]} 26. Ra3 {[%clk 0:01:30.8]}
26... Rxc3 {[%clk 0:00:34.4]} 27. Re1 {[%clk 0:01:31.5]} 27... Nc7 {[%clk
0:00:21.2]} 28. Qh5+ {[%clk 0:01:30.1]} 28... Kf8 {[%clk 0:00:19.6]} 29. Qxh7
{[%clk 0:01:29.4]} 29... Rc1 {[%clk 0:00:17.4]} 30. Rxc1 {[%clk 0:01:24]} 30...
Nxc1 {[%clk 0:00:18.7]} 31. Qh8+ {[%clk 0:01:23.7]} 31... Kf7 {[%clk 0:00:20]}
32. Rg3 {[%clk 0:01:23.5]} 32... Ne8 {[%clk 0:00:19.2]} 33. Bxf6 {[%clk
0:01:07.7]} 33... Ne2+ {[%clk 0:00:19.2]} 34. Kh1 {[%clk 0:00:57.9]} 34... Nxg3+
{[%clk 0:00:21.1]} 35. hxg3 {[%clk 0:00:57.4]} 35... Nxf6 {[%clk 0:00:23]} 0-1

[Event "*** Titled Tuesday 3|2 Blitz"]
[Site "Chess.com"]
[Date "2016.01.05"]
[Round "8"]
[White "Penguininja"]
[Black "Alliswell998"]
[Result "1-0"]
[WhiteElo "2148"]
[BlackElo "2062"]
[TimeControl "180+2"]
[EndTime "18:40:25 PST"]
[Termination "Penguininja won by resignation"]

1. Nf3 {[%clk 0:03:01.9]} 1... c5 {[%clk 0:03:00.7]} 2. d4 {[%clk 0:03:03.8]}
2... cxd4 {[%clk 0:03:01.2]} 3. Nxd4 {[%clk 0:03:03.6]} 3... Nf6 {[%clk
0:03:01.8]} 4. c4 {[%clk 0:03:02.8]} 4... b6 {[%clk 0:03:02.5]} 5. Nc3 {[%clk
0:03:01.1]} 5... Bb7 {[%clk 0:03:03.3]} 6. Qc2 {[%clk 0:02:47]} 6... g6 {[%clk
0:02:58.3]} 7. e4 {[%clk 0:02:47]} 7... d6 {[%clk 0:02:56.9]} 8. Be2 {[%clk
0:02:47.4]} 8... Nbd7 {[%clk 0:02:57.7]} 9. Be3 {[%clk 0:02:45.7]} 9... Bg7
{[%clk 0:02:58.6]} 10. O-O {[%clk 0:02:33.4]} 10... Rc8 {[%clk 0:02:57.6]} 11.
f3 {[%clk 0:02:18.2]} 11... O-O {[%clk 0:02:57.2]} 12. Rac1 {[%clk 0:02:18.2]}
12... a6 {[%clk 0:02:57.5]} 13. Qd2 {[%clk 0:02:14.1]} 13... Re8 {[%clk
0:02:50.7]} 14. Rfd1 {[%clk 0:02:06.7]} 14... Qc7 {[%clk 0:02:50.8]} 15. Nc2
{[%clk 0:01:56]} 15... Qb8 {[%clk 0:02:48.3]} 16. Nb4 {[%clk 0:01:47.8]} 16...
e6 {[%clk 0:02:36.6]} 17. Nc2 {[%clk 0:01:34.8]} 17... Bf8 {[%clk 0:02:32.7]}
18. Bf4 {[%clk 0:01:29.2]} 18... Ne5 {[%clk 0:02:31.6]} 19. b3 {[%clk
0:01:25.9]} 19... Nh5 {[%clk 0:01:56.4]} 20. Be3 {[%clk 0:01:24.9]} 20... Nd7
{[%clk 0:01:51.7]} 21. Na4 {[%clk 0:01:13.7]} 21... Bc6 {[%clk 0:01:50.5]} 22.
Nc3 {[%clk 0:01:10.8]} 22... Nhf6 {[%clk 0:01:50.3]} 23. Nb4 {[%clk 0:01:10.3]}
23... Bb7 {[%clk 0:01:50]} 24. Nc2 {[%clk 0:01:09.9]} 24... Nc5 {[%clk
0:01:47.9]} 25. Nd4 {[%clk 0:01:07.6]} 25... d5 {[%clk 0:01:43.6]} 26. cxd5
{[%clk 0:00:57.6]} 26... exd5 {[%clk 0:01:43.9]} 27. Bf4 {[%clk 0:00:58.2]}
27... Qa8 {[%clk 0:01:42.1]} 28. e5 {[%clk 0:00:54.8]} 28... Nh5 {[%clk
0:01:40.7]} 29. Bg5 {[%clk 0:00:54.3]} 29... Bg7 {[%clk 0:01:35.9]} 30. f4
{[%clk 0:00:54.8]} 30... h6 {[%clk 0:01:32.9]} 31. Bh4 {[%clk 0:00:48.2]} 31...
Ne4 {[%clk 0:01:33.6]} 32. Nxe4 {[%clk 0:00:43.6]} 32... dxe4 {[%clk 0:01:35.5]}
33. Bxh5 {[%clk 0:00:43.3]} 33... e3 {[%clk 0:01:31.6]} 34. Qxe3 {[%clk
0:00:41.6]} 34... gxh5 {[%clk 0:01:30.8]} 35. Nf5 {[%clk 0:00:41]} 35... Rxc1
{[%clk 0:01:16.7]} 36. Rxc1 {[%clk 0:00:42.9]} 36... Be4 {[%clk 0:01:13]} 37.
Nd6 {[%clk 0:00:32.8]} 37... Bg6 {[%clk 0:01:01]} 38. Nxe8 {[%clk 0:00:27.7]}
38... Qxe8 {[%clk 0:01:02.9]} 39. Qxb6 {[%clk 0:00:22.7]} 39... Kh7 {[%clk
0:01:03.8]} 40. Bf6 {[%clk 0:00:23.8]} 40... Bxf6 {[%clk 0:00:52.3]} 41. Qxf6
{[%clk 0:00:25.7]} 41... Qa8 {[%clk 0:00:47.8]} 42. f5 {[%clk 0:00:21.2]} 42...
Qa7+ {[%clk 0:00:43]} 43. Kh1 {[%clk 0:00:22]} 43... Qd7 {[%clk 0:00:42.1]} 44.
fxg6+ {[%clk 0:00:22.8]} 44... fxg6 {[%clk 0:00:43.3]} 45. e6 {[%clk 0:00:23]}
45... Qd6 {[%clk 0:00:44]} 46. Qf7+ {[%clk 0:00:23.8]} 46... Kh8 {[%clk
0:00:44.8]} 47. Rc8+ {[%clk 0:00:24.7]} 47... Qf8 {[%clk 0:00:46.6]} 1-0

[Event "*** Titled Tuesday 3|2 Blitz"]
[Site "Chess.com"]
[Date "2016.01.05"]
[Round "8"]
[White "cool64chess"]
[Black "saraswathii"]
[Result "0-1"]
[WhiteElo "2220"]
[BlackElo "1952"]
[TimeControl "180+2"]
[EndTime "18:40:37 PST"]
[Termination "saraswathii won by resignation"]

1. d4 {[%clk 0:02:57.7]} 1... Nc6 {[%clk 0:02:56.7]} 2. Nf3 {[%clk 0:02:54]}
2... d5 {[%clk 0:02:51.2]} 3. e3 {[%clk 0:02:33.3]} 3... Bf5 {[%clk 0:02:44.1]}
4. Bb5 {[%clk 0:02:26.7]} 4... Qd6 {[%clk 0:02:39.7]} 5. O-O {[%clk 0:02:22]}
5... a6 {[%clk 0:02:32.7]} 6. Bd3 {[%clk 0:02:22.2]} 6... Bg6 {[%clk 0:02:30.1]}
7. c4 {[%clk 0:02:18.1]} 7... e6 {[%clk 0:02:29.4]} 8. cxd5 {[%clk 0:02:16.3]}
8... exd5 {[%clk 0:02:29.4]} 9. Nc3 {[%clk 0:02:15.1]} 9... Nf6 {[%clk
0:02:28.3]} 10. a4 {[%clk 0:01:58.3]} 10... Bh5 {[%clk 0:02:19.2]} 11. Be2
{[%clk 0:01:57.4]} 11... Be7 {[%clk 0:02:18]} 12. Nd2 {[%clk 0:01:41.6]} 12...
Bg6 {[%clk 0:02:15.1]} 13. f4 {[%clk 0:01:39]} 13... Qd7 {[%clk 0:02:06.8]} 14.
Nf3 {[%clk 0:01:36]} 14... Ne4 {[%clk 0:02:03]} 15. Nxe4 {[%clk 0:01:28.4]}
15... dxe4 {[%clk 0:01:53.6]} 16. Ne5 {[%clk 0:01:27.3]} 16... Nxe5 {[%clk
0:01:54.3]} 17. fxe5 {[%clk 0:01:25.5]} 17... O-O {[%clk 0:01:45.3]} 18. Bd2
{[%clk 0:01:26.2]} 18... c5 {[%clk 0:01:38.9]} 19. Bc3 {[%clk 0:01:25.6]} 19...
Rad8 {[%clk 0:01:37.4]} 20. Qb3 {[%clk 0:01:22.6]} 20... Bg5 {[%clk 0:01:35.1]}
21. Ba5 {[%clk 0:01:14.6]} 21... cxd4 {[%clk 0:01:27.7]} 22. Bxd8 {[%clk
0:01:13]} 22... Bxe3+ {[%clk 0:01:27.5]} 23. Kh1 {[%clk 0:01:13.6]} 23... Qxd8
{[%clk 0:01:16.6]} 24. Bc4 {[%clk 0:01:11.8]} 24... Qe7 {[%clk 0:01:03.1]} 25.
e6 {[%clk 0:01:02.2]} 25... f5 {[%clk 0:00:49.4]} 26. Bd5 {[%clk 0:00:58.1]}
26... Rb8 {[%clk 0:00:37.1]} 27. a5 {[%clk 0:00:35.4]} 27... d3 {[%clk
0:00:30.1]} 28. Rae1 {[%clk 0:00:25.9]} 28... Bc5 {[%clk 0:00:20.9]} 29. Rc1
{[%clk 0:00:18.1]} 29... h6 {[%clk 0:00:15.8]} 30. Qc4 {[%clk 0:00:14.8]} 30...
Bd6 {[%clk 0:00:16.4]} 31. g4 {[%clk 0:00:12]} 31... Qh4 {[%clk 0:00:16]} 32.
e7+ {[%clk 0:00:07.7]} 32... Kh7 {[%clk 0:00:13]} 33. Bg8+ {[%clk 0:00:03.8]}
33... Rxg8 {[%clk 0:00:10.6]} 0-1

[Event "*** Titled Tuesday 3|2 Blitz"]
[Site "Chess.com"]
[Date "2016.01.05"]
[Round "8"]
[White "chess4life23"]
[Black "nfds"]
[Result "0-1"]
[WhiteElo "2170"]
[BlackElo "2338"]
[TimeControl "180+2"]
[EndTime "18:40:51 PST"]
[Termination "nfds won on time"]

1. e4 {[%clk 0:03:01.9]} 1... e5 {[%clk 0:02:59]} 2. Nf3 {[%clk 0:02:58.8]} 2...
Nc6 {[%clk 0:02:59.1]} 3. Bb5 {[%clk 0:02:58.8]} 3... Nf6 {[%clk 0:02:57.7]} 4.
d3 {[%clk 0:02:45.3]} 4... d6 {[%clk 0:02:41]} 5. h3 {[%clk 0:02:41.3]} 5... g6
{[%clk 0:02:31.9]} 6. c3 {[%clk 0:02:38.7]} 6... Bg7 {[%clk 0:02:32.2]} 7. O-O
{[%clk 0:02:38.5]} 7... O-O {[%clk 0:02:30.8]} 8. Be3 {[%clk 0:02:37.1]} 8...
Re8 {[%clk 0:02:00.9]} 9. Nbd2 {[%clk 0:02:37]} 9... d5 {[%clk 0:01:59.2]} 10.
Bg5 {[%clk 0:02:26.9]} 10... a6 {[%clk 0:01:50.1]} 11. Ba4 {[%clk 0:02:26.4]}
11... b5 {[%clk 0:01:49.3]} 12. Bc2 {[%clk 0:01:55.2]} 12... Be6 {[%clk
0:01:36.6]} 13. Re1 {[%clk 0:01:47.1]} 13... h6 {[%clk 0:01:14.4]} 14. Bh4
{[%clk 0:01:34.6]} 14... g5 {[%clk 0:01:07]} 15. Bg3 {[%clk 0:01:35.3]} 15...
dxe4 {[%clk 0:00:59.5]} 16. dxe4 {[%clk 0:01:25.3]} 16... Nh5 {[%clk 0:00:42.9]}
17. Bh2 {[%clk 0:01:15.5]} 17... Nf4 {[%clk 0:00:30.7]} 18. Nb3 {[%clk
0:01:14.6]} 18... Qe7 {[%clk 0:00:30.7]} 19. Bxf4 {[%clk 0:00:55.7]} 19... gxf4
{[%clk 0:00:25.9]} 20. Kh1 {[%clk 0:00:51.3]} 20... Kh7 {[%clk 0:00:25.8]} 21.
Nh2 {[%clk 0:00:48.4]} 21... a5 {[%clk 0:00:19.3]} 22. Qh5 {[%clk 0:00:41.4]}
22... Rad8 {[%clk 0:00:16.3]} 23. Rad1 {[%clk 0:00:41.1]} 23... a4 {[%clk
0:00:14.3]} 24. Nc1 {[%clk 0:00:35.7]} 24... Na5 {[%clk 0:00:13.8]} 25. Ng4
{[%clk 0:00:25.1]} 25... Nc4 {[%clk 0:00:09.5]} 26. Nd3 {[%clk 0:00:17.9]} 26...
f6 {[%clk 0:00:08.4]} 27. b3 {[%clk 0:00:13.2]} 27... Na3 {[%clk 0:00:05.2]} 28.
Bb1 {[%clk 0:00:12.7]} 28... Nxb1 {[%clk 0:00:05.9]} 29. Rxb1 {[%clk 0:00:08.9]}
29... Rxd3 {[%clk 0:00:07]} 30. bxa4 {[%clk 0:00:10.2]} 30... bxa4 {[%clk
0:00:07.8]} 31. a3 {[%clk 0:00:10.1]} 31... Bxg4 {[%clk 0:00:07.6]} 32. Qxg4
{[%clk 0:00:08.7]} 32... Qe6 {[%clk 0:00:08.9]} 33. Qh5 {[%clk 0:00:08.6]} 33...
Rxc3 {[%clk 0:00:09]} 34. Rbc1 {[%clk 0:00:09.2]} 34... Rxc1 {[%clk 0:00:09.5]}
35. Rxc1 {[%clk 0:00:11.1]} 35... Re7 {[%clk 0:00:10.9]} 36. Rb1 {[%clk
0:00:07.7]} 36... Qf7 {[%clk 0:00:11.5]} 37. Qg4 {[%clk 0:00:07.6]} 37... Qg6
{[%clk 0:00:12.3]} 38. Qf3 {[%clk 0:00:07.2]} 38... f5 {[%clk 0:00:13.1]} 39.
exf5 {[%clk 0:00:07.2]} 39... Qxf5 {[%clk 0:00:15]} 40. Qd1 {[%clk 0:00:06.4]}
40... Rd7 {[%clk 0:00:14.9]} 41. Qxa4 {[%clk 0:00:06.5]} 41... f3 {[%clk
0:00:14.7]} 0-1

[Event "*** Titled Tuesday 3|2 Blitz"]
[Site "Chess.com"]
[Date "2016.01.05"]
[Round "8"]
[White "Piccadilly123"]
[Black "AdrianaNikolova"]
[Result "0-1"]
[WhiteElo "1730"]
[BlackElo "2138"]
[TimeControl "180+2"]
[EndTime "18:40:57 PST"]
[Termination "AdrianaNikolova won by checkmate"]

1. e4 {[%clk 0:03:01.9]} 1... c5 {[%clk 0:02:59.9]} 2. c3 {[%clk 0:03:02.6]}
2... Nf6 {[%clk 0:02:55.4]} 3. e5 {[%clk 0:03:03.2]} 3... Nd5 {[%clk 0:02:56.9]}
4. Nf3 {[%clk 0:03:02.7]} 4... e6 {[%clk 0:02:57.9]} 5. d4 {[%clk 0:03:03.3]}
5... cxd4 {[%clk 0:02:59.3]} 6. cxd4 {[%clk 0:03:04.5]} 6... b6 {[%clk
0:02:59.4]} 7. a3 {[%clk 0:03:05.5]} 7... Be7 {[%clk 0:02:58.5]} 8. Bd3 {[%clk
0:03:06.4]} 8... Ba6 {[%clk 0:02:59]} 9. O-O {[%clk 0:02:56.4]} 9... Bxd3 {[%clk
0:02:58.7]} 10. Qxd3 {[%clk 0:02:56.9]} 10... d6 {[%clk 0:03:00.6]} 11. Nbd2
{[%clk 0:02:51.8]} 11... Nd7 {[%clk 0:02:55.4]} 12. Ne4 {[%clk 0:02:48.8]} 12...
dxe5 {[%clk 0:02:55.8]} 13. dxe5 {[%clk 0:02:47.1]} 13... Nc5 {[%clk 0:02:54.9]}
14. Nxc5 {[%clk 0:02:33.8]} 14... Bxc5 {[%clk 0:02:56.8]} 15. Bg5 {[%clk
0:02:34.3]} 15... Be7 {[%clk 0:02:56.4]} 16. Bxe7 {[%clk 0:02:34]} 16... Qxe7
{[%clk 0:02:56.7]} 17. Rac1 {[%clk 0:02:34.8]} 17... O-O {[%clk 0:02:56.4]} 18.
Qe4 {[%clk 0:02:33.5]} 18... Rac8 {[%clk 0:02:55.6]} 19. h4 {[%clk 0:02:31.2]}
19... h6 {[%clk 0:02:53.4]} 20. Nd4 {[%clk 0:02:10.2]} 20... Qd7 {[%clk
0:02:47.8]} 21. Rfd1 {[%clk 0:01:32.9]} 21... Rxc1 {[%clk 0:02:45.6]} 22. Rxc1
{[%clk 0:01:33.4]} 22... Rc8 {[%clk 0:02:42.2]} 23. Qe1 {[%clk 0:01:28.3]} 23...
Nf4 {[%clk 0:02:29.5]} 24. Rxc8+ {[%clk 0:01:22.7]} 24... Qxc8 {[%clk
0:02:31.4]} 25. Qd2 {[%clk 0:01:21.8]} 25... Ng6 {[%clk 0:02:26.5]} 26. Nf3
{[%clk 0:01:19.2]} 26... Qc7 {[%clk 0:02:21.9]} 27. Qc3 {[%clk 0:00:50.5]} 27...
Qxc3 {[%clk 0:02:19.3]} 28. bxc3 {[%clk 0:00:51.4]} 28... h5 {[%clk 0:02:19.2]}
29. g3 {[%clk 0:00:50.7]} 29... Ne7 {[%clk 0:02:20.3]} 30. Nd4 {[%clk 0:00:49]}
30... Nd5 {[%clk 0:02:20.8]} 31. c4 {[%clk 0:00:49.4]} 31... Nc3 {[%clk
0:02:19.1]} 32. Nb5 {[%clk 0:00:32]} 32... Nb1 {[%clk 0:02:08]} 33. Kf1 {[%clk
0:00:29.3]} 33... Nd2+ {[%clk 0:02:06.8]} 34. Ke2 {[%clk 0:00:30.5]} 34... Nxc4
{[%clk 0:02:08.7]} 35. f4 {[%clk 0:00:28.8]} 35... a6 {[%clk 0:02:09.4]} 36. Nc7
{[%clk 0:00:28.4]} 36... Nxa3 {[%clk 0:02:03.1]} 37. Nxa6 {[%clk 0:00:29.2]}
37... Nb5 {[%clk 0:01:52]} 38. Kd3 {[%clk 0:00:24.4]} 38... Na7 {[%clk
0:01:47.8]} 39. Kc4 {[%clk 0:00:21.1]} 39... Kh7 {[%clk 0:01:49.1]} 40. Kd4
{[%clk 0:00:16.2]} 40... Kg6 {[%clk 0:01:46.9]} 41. Ke4 {[%clk 0:00:17.3]} 41...
Nc6 {[%clk 0:01:47]} 42. Nc7 {[%clk 0:00:15.7]} 42... Ne7 {[%clk 0:01:41.3]} 43.
Nb5 {[%clk 0:00:16.5]} 43... Nf5 {[%clk 0:01:41.5]} 44. Kf3 {[%clk 0:00:17.4]}
44... f6 {[%clk 0:01:40.2]} 45. Nd6 {[%clk 0:00:15.2]} 45... fxe5 {[%clk
0:01:39.3]} 46. fxe5 {[%clk 0:00:16]} 46... Nxd6 {[%clk 0:01:39]} 47. exd6
{[%clk 0:00:17]} 47... Kf6 {[%clk 0:01:40.9]} 48. Ke4 {[%clk 0:00:18.2]} 48...
Kf7 {[%clk 0:01:35.7]} 49. Kd4 {[%clk 0:00:16]} 49... Ke8 {[%clk 0:01:34.7]} 50.
Kc4 {[%clk 0:00:12.8]} 50... Kd7 {[%clk 0:01:35.9]} 51. Kb5 {[%clk 0:00:14]}
51... Kxd6 {[%clk 0:01:37.3]} 52. Kxb6 {[%clk 0:00:15.6]} 52... e5 {[%clk
0:01:38.6]} 53. Kb5 {[%clk 0:00:16.9]} 53... Kd5 {[%clk 0:01:39.4]} 54. Kb4
{[%clk 0:00:17.7]} 54... Kd4 {[%clk 0:01:40.8]} 55. Kb5 {[%clk 0:00:18.1]} 55...
e4 {[%clk 0:01:41.6]} 56. Kc6 {[%clk 0:00:19.7]} 56... e3 {[%clk 0:01:43.5]} 57.
Kd6 {[%clk 0:00:21.3]} 57... e2 {[%clk 0:01:45.4]} 58. Ke6 {[%clk 0:00:23]}
58... e1=Q+ {[%clk 0:01:47.3]} 59. Kf7 {[%clk 0:00:24.6]} 59... Qxg3 {[%clk
0:01:48.9]} 60. Kg8 {[%clk 0:00:25.5]} 60... Ke5 {[%clk 0:01:49.2]} 61. Kh7
{[%clk 0:00:26.8]} 61... Kf6 {[%clk 0:01:49.4]} 62. Kh8 {[%clk 0:00:28.3]} 62...
Qxh4 {[%clk 0:01:50.4]} 63. Kh7 {[%clk 0:00:29.2]} 63... Qa4 {[%clk 0:01:51.9]}
64. Kh8 {[%clk 0:00:29.1]} 64... g5 {[%clk 0:01:53.8]} 65. Kh7 {[%clk
0:00:30.2]} 65... g4 {[%clk 0:01:55.7]} 66. Kh6 {[%clk 0:00:30.9]} 66... h4
{[%clk 0:01:57.6]} 67. Kh5 {[%clk 0:00:31.7]} 67... g3 {[%clk 0:01:59.5]} 68.
Kh6 {[%clk 0:00:32.3]} 68... h3 {[%clk 0:02:01.4]} 69. Kh5 {[%clk 0:00:33.2]}
69... g2 {[%clk 0:02:03.3]} 70. Kh6 {[%clk 0:00:34.6]} 70... h2 {[%clk
0:02:05.2]} 71. Kh7 {[%clk 0:00:36]} 71... g1=Q {[%clk 0:02:05.9]} 72. Kh8
{[%clk 0:00:36.6]} 72... h1=Q# {[%clk 0:02:06.9]} 0-1

[Event "*** Titled Tuesday 3|2 Blitz"]
[Site "Chess.com"]
[Date "2016.01.05"]
[Round "8"]
[White "jcibarra"]
[Black "MinhGTrAn"]
[Result "1-0"]
[WhiteElo "2535"]
[BlackElo "2538"]
[TimeControl "180+2"]
[EndTime "18:41:49 PST"]
[Termination "jcibarra won on time"]

1. e4 {[%clk 0:03:01.9]} 1... e6 {[%clk 0:03:01.2]} 2. d4 {[%clk 0:03:02.1]}
2... d5 {[%clk 0:03:03.1]} 3. Nc3 {[%clk 0:03:03.7]} 3... Bb4 {[%clk 0:03:04.2]}
4. e5 {[%clk 0:03:04.7]} 4... b6 {[%clk 0:03:05.7]} 5. Qg4 {[%clk 0:03:04.1]}
5... g6 {[%clk 0:03:05.5]} 6. h4 {[%clk 0:02:40.9]} 6... h5 {[%clk 0:03:06.4]}
7. Qf3 {[%clk 0:02:38.2]} 7... Qd7 {[%clk 0:03:07.3]} 8. Bg5 {[%clk 0:02:35.7]}
8... Ba6 {[%clk 0:03:07.7]} 9. Ne2 {[%clk 0:02:30.5]} 9... Nc6 {[%clk
0:02:57.1]} 10. O-O-O {[%clk 0:02:30.3]} 10... Nge7 {[%clk 0:02:55.4]} 11. Bf6
{[%clk 0:02:29.7]} 11... Rg8 {[%clk 0:02:53]} 12. Nb1 {[%clk 0:02:21.5]} 12...
Nf5 {[%clk 0:02:46.8]} 13. c3 {[%clk 0:02:18.4]} 13... Be7 {[%clk 0:02:47.4]}
14. Qf4 {[%clk 0:01:54]} 14... O-O-O {[%clk 0:02:43.3]} 15. f3 {[%clk
0:01:54.1]} 15... Bxf6 {[%clk 0:02:20.4]} 16. exf6 {[%clk 0:01:56]} 16... Qd6
{[%clk 0:02:21.9]} 17. g4 {[%clk 0:01:39.6]} 17... Bxe2 {[%clk 0:01:56.4]} 18.
Qxd6 {[%clk 0:01:38.8]} 18... Nxd6 {[%clk 0:01:41.4]} 19. Bxe2 {[%clk
0:01:40.2]} 19... hxg4 {[%clk 0:01:16.2]} 20. fxg4 {[%clk 0:01:41.3]} 20... Ne4
{[%clk 0:01:17.9]} 21. g5 {[%clk 0:01:41.7]} 21... Nf2 {[%clk 0:01:17.2]} 22.
Nd2 {[%clk 0:01:34.4]} 22... Nxd1 {[%clk 0:01:17.8]} 23. Kxd1 {[%clk 0:01:31.9]}
23... Nb8 {[%clk 0:00:50.8]} 24. Nf3 {[%clk 0:01:30.9]} 24... c6 {[%clk
0:00:38.7]} 25. Ne5 {[%clk 0:01:30.7]} 25... Rdf8 {[%clk 0:00:40.3]} 26. Rg1
{[%clk 0:01:22.4]} 26... Kc7 {[%clk 0:00:40.7]} 27. h5 {[%clk 0:01:17.2]} 27...
Nd7 {[%clk 0:00:23.2]} 28. hxg6 {[%clk 0:01:03.1]} 28... Nxe5 {[%clk 0:00:17.4]}
29. g7 {[%clk 0:00:37.2]} 29... Nd7 {[%clk 0:00:18.2]} 30. gxf8=Q {[%clk
0:00:36.1]} 30... Nxf8 {[%clk 0:00:08.3]} 31. Bh5 {[%clk 0:00:36.9]} 31... Ng6
{[%clk 0:00:09.6]} 32. Bxg6 {[%clk 0:00:35]} 32... Rxg6 {[%clk 0:00:11.5]} 33.
Ke2 {[%clk 0:00:36.2]} 33... Kd6 {[%clk 0:00:12.6]} 34. Kf3 {[%clk 0:00:37.7]}
34... Rg8 {[%clk 0:00:07.9]} 35. Kf4 {[%clk 0:00:37.4]} 35... Rh8 {[%clk
0:00:07.4]} 36. g6 {[%clk 0:00:38.5]} 36... fxg6 {[%clk 0:00:06.8]} 37. Rxg6
{[%clk 0:00:40.3]} 37... Rh1 {[%clk 0:00:05.8]} 38. Kg5 {[%clk 0:00:26.5]} 38...
c5 {[%clk 0:00:04.5]} 39. Rg7 {[%clk 0:00:24.1]} 39... Rf1 {[%clk 0:00:02.5]}
40. Rxa7 {[%clk 0:00:22.2]} 40... cxd4 {[%clk 0:00:03.6]} 41. cxd4 {[%clk
0:00:23.8]} 41... e5 {[%clk 0:00:05.3]} 42. dxe5+ {[%clk 0:00:21]} 42... Kxe5
{[%clk 0:00:07.2]} 43. Re7+ {[%clk 0:00:18.8]} 43... Kd6 {[%clk 0:00:06.5]} 44.
Re8 {[%clk 0:00:19]} 44... d4 {[%clk 0:00:06.7]} 45. Kg6 {[%clk 0:00:20]} 45...
Rg1+ {[%clk 0:00:04.5]} 46. Kh7 {[%clk 0:00:21.2]} 46... Rf1 {[%clk 0:00:04.8]}
47. Kg7 {[%clk 0:00:22.5]} 47... Rg1+ {[%clk 0:00:06.2]} 48. Kf8 {[%clk
0:00:23.9]} 48... Kd7 {[%clk 0:00:03.6]} 49. Re4 {[%clk 0:00:24.1]} 49... Rf1
{[%clk 0:00:03.3]} 50. f7 {[%clk 0:00:21.8]} 50... d3 {[%clk 0:00:03.1]} 51.
Rd4+ {[%clk 0:00:22.6]} 51... Ke6 {[%clk 0:00:04.6]} 52. Ke8 {[%clk 0:00:17.2]}
1-0